fUST/lending_fUST_20250408
["ID","MTS","AMOUNT","RATE_DAILY","PERIOD"]
[357509869,1744096245629,-574.23,0.00021224,2]
[357509870,1744096245638,-500.0,0.00021224,2]
[357509871,1744096245647,-631.26,0.00021224,2]
[357509872,1744096245657,-524.67,0.00021224,2]
[357509873,1744096245666,-976.47,0.00021224,2]
[357509874,1744096245675,-500.0,0.00021396,2]
[357509875,1744096245685,-1733.29,0.00021396,2]
[357509876,1744096245694,-1572.23,0.00021396,2]
[357509877,1744096245703,-760.4,0.00021396,2]
[357509878,1744096245713,-691.08,0.00021396,2]
[357509880,1744096245723,-911.97,0.00021396,2]
[357509881,1744096245733,-500.0,0.00021396,2]
[357509882,1744096245743,-500.0,0.00021396,2]
[357509883,1744096245755,-518.54,0.00021396,2]
[357509884,1744096245765,-948.06,0.00021396,2]
[357509885,1744096245775,-500.0,0.00021396,2]
[357509886,1744096245784,-500.0,0.00021397,2]
[357509887,1744096245794,-500.0,0.00021397,2]
[357509888,1744096245803,-500.0,0.00021397,2]
[357509889,1744096245813,-500.0,0.00021397,2]
[357509890,1744096245822,-500.0,0.00021397,2]
[357509891,1744096245832,-500.0,0.00021397,2]
[357509892,1744096245841,-500.0,0.00021397,2]
[357509893,1744096245850,-500.0,0.00021397,2]
[357509894,1744096245859,-500.0,0.00021397,2]
[357509895,1744096245869,-500.0,0.00021397,2]
[357509896,1744096245878,-505.58,0.00021397,2]
[357509897,1744096245888,-542.36,0.00021397,2]
[357509898,1744096245897,-871.23,0.00021397,2]
[357509899,1744096245906,-500.0,0.00021397,2]
[357509900,1744096245915,-574.78,0.00021397,2]
[357509901,1744096245925,-411.02,0.00021397,2]
[357509902,1744096245935,-5430.84,0.00021397,2]
[357509903,1744096245944,-500.0,0.00021397,2]
[357509904,1744096245954,-500.0,0.00021397,2]
[357509905,1744096245964,-1158.68,0.00021397,2]
[357509906,1744096245974,-566.0,0.00021397,2]
[357509908,1744096245983,-500.0,0.00021397,2]
[357509909,1744096245993,-600.12,0.00021397,2]
[357509910,1744096246002,-500.0,0.00021397,2]
[357509911,1744096246012,-384.39,0.00021397,2]
[357509912,1744096246022,-1018.84,0.00021398,2]
[357509913,1744096246031,-651.19,0.00021398,2]
[357509914,1744096246041,-500.0,0.00021398,2]
[357509915,1744096246050,-864.85,0.00021398,2]
[357509916,1744096246060,-2875.12,0.00021398,2]
[357509917,1744096246069,-1322.83,0.00021398,2]
[357509918,1744096246078,-500.0,0.00021398,2]
[357509919,1744096246087,-1230.82329149,0.00021398,2]
[357509921,1744096246206,-637.08162732,0.00021398,2]
[357509924,1744096246218,-828.11508119,0.00021398,2]
[357509925,1744096246227,-652.71,0.00021398,2]
[357509926,1744096246236,-186.38443443,0.00021497,2]
[357509927,1744096246246,-476.29,0.00021497,2]
[357509928,1744096246255,-1126.37,0.00021497,2]
[357509929,1744096246264,-163.80794054,0.00021497,2]
[357509930,1744096246525,-500.0,0.00019479,2]
[357509931,1744096246535,-457.40894694,0.00019479,2]
[357509932,1744096246544,-214.78,0.00019479,2]
[357509933,1744096246554,-500.0,0.00019479,2]
[357509934,1744096246565,-500.0,0.00019479,2]
[357509935,1744096246574,-500.0,0.00019479,2]
[357509936,1744096246584,-500.0,0.00019753,2]
[357509937,1744096246594,-500.0,0.00019753,2]
[357509938,1744096246603,-231.3121754,0.00019753,2]
[357509939,1744096246613,-318.62,0.00019753,2]
[357509940,1744096246622,-500.0,0.00020027,2]
[357509941,1744096246631,-500.0,0.00020027,2]
[357509942,1744096246641,-500.0,0.00020301,2]
[357509943,1744096246651,-500.0,0.00020301,2]
[357509944,1744096246661,-500.0,0.00020575,2]
[357509945,1744096246670,-500.0,0.00020575,2]
[357509946,1744096246679,-500.0,0.00020849,2]
[357509947,1744096246689,-500.0,0.00021123,2]
[357509948,1744096246698,-500.0,0.00021397,2]
[357509949,1744096246707,-336.19205946,0.00021497,2]
[357509950,1744096246717,-500.0,0.00021497,2]
[357509951,1744096246726,-500.0,0.00021497,2]
[357509952,1744096246735,-517.43,0.00021497,2]
[357509953,1744096246745,-500.0,0.00021498,2]
[357509954,1744096246755,-500.0,0.00021498,2]
[357509955,1744096246768,-639.32,0.00021498,2]
[357509956,1744096246777,-645.20978783,0.00021498,2]
[357509957,1744096246787,-519.12,0.00021498,2]
[357509958,1744096246796,-500.0,0.00021498,2]
[357509959,1744096246806,-500.0,0.00021498,2]
[357509960,1744096246815,-574.23,0.00021498,2]
[357509961,1744096246824,-500.0,0.00021498,2]
[357509962,1744096246833,-631.26,0.00021498,2]
[357509963,1744096246843,-524.67,0.00021498,2]
[357509964,1744096246853,-976.47,0.00021498,2]
[357509965,1744096246862,-500.0,0.000215,2]
[357509966,1744096246872,-500.0,0.0002167,2]
[357509967,1744096246881,-1733.29,0.0002167,2]
[357509968,1744096246891,-1572.23,0.0002167,2]
[357509969,1744096246900,-760.4,0.0002167,2]
[357509970,1744096246909,-691.08,0.0002167,2]
[357509971,1744096246919,-911.97,0.0002167,2]
[357509972,1744096246928,-500.0,0.0002167,2]
[357509973,1744096246938,-500.0,0.0002167,2]
[357509974,1744096246947,-518.54,0.0002167,2]
[357509975,1744096246957,-948.06,0.0002167,2]
[357509976,1744096246966,-500.0,0.0002167,2]
[357509977,1744096246975,-500.0,0.00021671,2]
[357509978,1744096246985,-500.0,0.00021671,2]
[357509979,1744096246994,-500.0,0.00021671,2]
[357509980,1744096247004,-500.0,0.00021671,2]
[357509981,1744096247013,-500.0,0.00021671,2]
[357509982,1744096247023,-404.99340904,0.00021671,2]
[357509983,1744096247033,-590.1,0.00021671,2]
[357509984,1744096247042,-500.0,0.00021671,2]
[357509985,1744096247052,-500.0,0.00021671,2]
[357509986,1744096247061,-505.58,0.00021671,2]
[357509987,1744096247071,-542.36,0.00021671,2]
[357509988,1744096247081,-871.23,0.00021671,2]
[357509989,1744096247090,-500.03,0.00021671,2]
[357509990,1744096247100,-574.78,0.00021671,2]
[357509991,1744096247110,-5430.84,0.00021671,2]
[357509992,1744096247120,-500.0,0.00021671,2]
[357509993,1744096247129,-1158.68,0.00021671,2]
[357509994,1744096247139,-566.0,0.00021671,2]
[357509995,1744096247150,-500.0,0.00021671,2]
[357509996,1744096247160,-600.12,0.00021671,2]
[357509997,1744096247169,-500.0,0.00021671,2]
[357509998,1744096247178,-500.0,0.00021671,2]
[357509999,1744096247188,-1018.84,0.00021672,2]
[357510000,1744096247198,-651.19,0.00021672,2]
[357510001,1744096247208,-500.0,0.00021672,2]
[357510002,1744096247217,-864.85,0.00021672,2]
[357510003,1744096247227,-2875.12,0.00021672,2]
[357510004,1744096247237,-1322.83,0.00021672,2]
[357510005,1744096247246,-500.0,0.00021672,2]
[357510006,1744096247256,-2696.02,0.00021672,2]
[357510007,1744096247266,-652.71,0.00021672,2]
[357510008,1744096247275,-500.63505816,0.00021728,2]
[357510009,1744096247284,-301.64419783,0.00021728,2]
[357510010,1744096247294,-501.31126814,0.00021728,2]
[357510011,1744096247303,-500.0,0.00021728,2]
[357510012,1744096247312,-501.97666393,0.00021728,2]
[357510013,1744096247321,-500.0,0.00021728,2]
[357510014,1744096247333,-500.0,0.00021728,2]
[357510015,1744096247342,-500.0,0.00021728,2]
[357510016,1744096247351,-615.16376688,0.00021728,2]
[357510017,1744096247360,-500.0,0.00021728,2]
[357510018,1744096247370,-500.0,0.00021728,2]
[357510019,1744096247379,-500.0,0.00021728,2]
[357510020,1744096247388,-502.15300924,0.00021728,2]
[357510021,1744096247399,-500.0,0.00021728,2]
[357510022,1744096247408,-1126.37,0.00021771,2]
[357510023,1744096247417,-500.0,0.00021771,2]
[357510024,1744096247427,-500.0,0.00021771,2]
[357510025,1744096247436,-500.0,0.00021771,2]
[357510026,1744096247445,-517.43,0.00021771,2]
[357510027,1744096247454,-500.0,0.00021772,2]
[357510028,1744096247463,-639.32,0.00021772,2]
[357510029,1744096247472,-519.12,0.00021772,2]
[357510030,1744096247482,-500.0,0.00021772,2]
[357510031,1744096247491,-500.0,0.00021772,2]
[357510032,1744096247501,-574.23,0.00021772,2]
[357510033,1744096247510,-500.0,0.00021772,2]
[357510034,1744096247523,-631.26,0.00021772,2]
[357510035,1744096247533,-524.67,0.00021772,2]
[357510036,1744096247542,-976.47,0.00021772,2]
[357510037,1744096247551,-200.0,0.00021917,2]
[357510038,1744096247561,-500.0,0.00021944,2]
[357510039,1744096247689,-1733.29,0.00021944,2]
[357510040,1744096247699,-1572.23,0.00021944,2]
[357510041,1744096247709,-760.4,0.00021944,2]
[357510042,1744096247718,-691.08,0.00021944,2]
[357510043,1744096247728,-911.97,0.00021944,2]
[357510044,1744096247738,-500.0,0.00021944,2]
[357510045,1744096247747,-500.0,0.00021944,2]
[357510046,1744096247757,-518.54,0.00021944,2]
[357510047,1744096247766,-948.06,0.00021944,2]
[357510048,1744096247775,-500.0,0.00021944,2]
[357510049,1744096247784,-500.0,0.00021945,2]
[357510050,1744096247794,-500.0,0.00021945,2]
[357510051,1744096247803,-640.22,0.00021945,2]
[357510052,1744096247812,-500.0,0.00021945,2]
[357510053,1744096247821,-500.0,0.00021945,2]
[357510054,1744096247831,-500.0,0.00021945,2]
[357510055,1744096247840,-500.0,0.00021945,2]
[357510056,1744096247849,-505.58,0.00021945,2]
[357510057,1744096247858,-542.36,0.00021945,2]
[357510058,1744096247868,-871.23,0.00021945,2]
[357510059,1744096247878,-574.78,0.00021945,2]
[357510060,1744096247887,-5430.84,0.00021945,2]
[357510061,1744096247897,-631.77079161,0.00021945,2]
[357510062,1744096247907,-1158.68,0.00021945,2]
[357510063,1744096247916,-566.0,0.00021945,2]
[357510064,1744096247926,-500.0,0.00021945,2]
[357510065,1744096247935,-600.12,0.00021945,2]
[357510066,1744096247944,-500.0,0.00021945,2]
[357510067,1744096247953,-500.0,0.00021945,2]
[357510068,1744096247962,-1018.84,0.00021946,2]
[357510069,1744096247972,-651.19,0.00021946,2]
[357510070,1744096247982,-864.85,0.00021946,2]
[357510071,1744096247991,-2875.12,0.00021946,2]
[357510072,1744096248001,-1322.83,0.00021946,2]
[357510073,1744096248011,-500.0,0.00021946,2]
[357510074,1744096248020,-2696.02,0.00021946,2]
[357510075,1744096248029,-652.71,0.00021946,2]
[357510076,1744096248039,-1126.37,0.00022045,2]
[357510077,1744096248049,-500.0,0.00022045,2]
[357510078,1744096248058,-500.0,0.00022045,2]
[357510079,1744096248068,-500.0,0.00022045,2]
[357510080,1744096248077,-517.43,0.00022045,2]
[357510081,1744096248087,-500.0,0.00022046,2]
[357510082,1744096248097,-639.32,0.00022046,2]
[357510083,1744096248107,-519.12,0.00022046,2]
[357510084,1744096248116,-500.0,0.00022046,2]
[357510085,1744096248126,-500.0,0.00022046,2]
[357510086,1744096248135,-574.23,0.00022046,2]
[357510087,1744096248146,-631.26,0.00022046,2]
[357510088,1744096248156,-524.67,0.00022046,2]
[357510089,1744096248166,-976.47,0.00022046,2]
[357510090,1744096248176,-501.90642249,0.00022069,2]
[357510091,1744096248185,-500.0,0.00022069,2]
[357510092,1744096248195,-160.0,0.00022116,2]
[357510093,1744096248205,-837.41003169,0.00022116,2]
[357510094,1744096248215,-160.0,0.00022117,2]
[357510095,1744096248224,-160.0,0.00022118,2]
[357510096,1744096248234,-160.0,0.00022141,2]
[357510097,1744096248244,-419.46366559,0.00022141,2]
[357510098,1744096248253,-12530.86563381,0.00022141,2]
[357510099,1744096248263,-500.0,0.00022218,2]
[357510100,1744096248273,-1733.29,0.00022218,2]
[357510101,1744096248282,-1572.23,0.00022218,2]
[357510102,1744096248291,-760.4,0.00022218,2]
[357510103,1744096248301,-691.08,0.00022218,2]
[357510104,1744096248310,-911.97,0.00022218,2]
[357510105,1744096248319,-500.0,0.00022218,2]
[357510106,1744096248329,-500.0,0.00022218,2]
[357510107,1744096248338,-518.54,0.00022218,2]
[357510108,1744096248347,-948.06,0.00022218,2]
[357510109,1744096248357,-500.0,0.00022218,2]
[357510110,1744096248366,-501.29575078,0.00022219,2]
[357510111,1744096248376,-500.0,0.00022219,2]
[357510112,1744096248385,-500.0,0.00022219,2]
[357510113,1744096248395,-500.0,0.00022219,2]
[357510114,1744096248404,-380.35,0.00022219,2]
[357510115,1744096248413,-500.0,0.00022219,2]
[357510116,1744096248423,-505.58,0.00022219,2]
[357510117,1744096248432,-542.36,0.00022219,2]
[357510118,1744096248442,-871.23,0.00022219,2]
[357510119,1744096248451,-574.78,0.00022219,2]
[357510120,1744096248461,-5430.84,0.00022219,2]
[357510121,1744096248470,-1158.68,0.00022219,2]
[357510122,1744096248479,-566.0,0.00022219,2]
[357510123,1744096248488,-500.0,0.00022219,2]
[357510124,1744096248498,-600.12,0.00022219,2]
[357510125,1744096248507,-500.0,0.00022219,2]
[357510126,1744096248518,-500.0,0.00022219,2]
[357510127,1744096248528,-1018.84,0.0002222,2]
[357510128,1744096248537,-651.19,0.0002222,2]
[357510129,1744096248547,-864.85,0.0002222,2]
[357510130,1744096248556,-2875.12,0.0002222,2]
[357510131,1744096248566,-1322.83,0.0002222,2]
[357510132,1744096248576,-500.0,0.0002222,2]
[357510133,1744096248586,-2696.02,0.0002222,2]
[357510134,1744096248600,-652.71,0.0002222,2]
[357510135,1744096248611,-4835.57993004,0.000223,4]
[357510136,1744096248620,-1126.37,0.00022319,2]
[357510137,1744096248629,-500.0,0.00022319,2]
[357510138,1744096248639,-168.0,0.00022319,2]
[357510139,1744096248650,-168.0,0.00022319,2]
[357510140,1744096248659,-288.9796707,0.00022319,2]
[357510141,1744096248669,-376.79907711,0.00022319,2]
[357510142,1744096248679,-500.0,0.00022319,2]
[357510143,1744096248688,-517.43,0.00022319,2]
[357510144,1744096248697,-500.0,0.0002232,2]
[357510145,1744096248706,-639.32,0.0002232,2]
[357510146,1744096248716,-519.12,0.0002232,2]
[357510147,1744096248725,-500.0,0.0002232,2]
[357510148,1744096248734,-500.0,0.0002232,2]
[357510149,1744096248743,-574.23,0.0002232,2]
[357510150,1744096248753,-631.26,0.0002232,2]
[357510151,1744096248762,-524.67,0.0002232,2]
[357510152,1744096248771,-976.47,0.0002232,2]
[357510153,1744096248780,-186.38443443,0.00022418,2]
[357510154,1744096248790,-500.0,0.00022492,2]
[357510155,1744096248799,-1733.29,0.00022492,2]
[357510156,1744096248809,-1572.23,0.00022492,2]
[357510157,1744096248818,-760.4,0.00022492,2]
[357510158,1744096248828,-691.08,0.00022492,2]
[357510159,1744096248837,-911.97,0.00022492,2]
[357510160,1744096248847,-500.0,0.00022492,2]
[357510161,1744096248857,-500.0,0.00022492,2]
[357510162,1744096248866,-518.54,0.00022492,2]
[357510163,1744096248876,-948.06,0.00022492,2]
[357510164,1744096248886,-500.0,0.00022492,2]
[357510165,1744096248896,-500.0,0.00022493,2]
[357510166,1744096248905,-500.0,0.00022493,2]
[357510167,1744096248914,-500.0,0.00022493,2]
[357510168,1744096248923,-500.0,0.00022493,2]
[357510169,1744096248933,-505.58,0.00022493,2]
[357510170,1744096248942,-542.36,0.00022493,2]
[357510171,1744096248952,-871.23,0.00022493,2]
[357510172,1744096248962,-574.78,0.00022493,2]
[357510173,1744096248972,-5430.84,0.00022493,2]
[357510174,1744096248982,-1158.68,0.00022493,2]
[357510175,1744096248991,-566.0,0.00022493,2]
[357510176,1744096249001,-500.0,0.00022493,2]
[357510177,1744096249010,-600.12,0.00022493,2]
[357510178,1744096249019,-500.0,0.00022493,2]
[357510179,1744096249029,-500.0,0.00022493,2]
[357510180,1744096249039,-1018.84,0.00022494,2]
[357510181,1744096249048,-651.19,0.00022494,2]
[357510182,1744096249058,-864.85,0.00022494,2]
[357510183,1744096249068,-2875.12,0.00022494,2]
[357510184,1744096249078,-1322.83,0.00022494,2]
[357510185,1744096249088,-500.0,0.00022494,2]
[357510186,1744096249098,-2696.02,0.00022494,2]
[357510187,1744096249109,-652.71,0.00022494,2]
[357510188,1744096249119,-1126.37,0.00022593,2]
[357510189,1744096249130,-308.19,0.00022593,2]
[357510190,1744096249140,-500.0,0.00022593,2]
[357510191,1744096249150,-517.43,0.00022593,2]
[357510192,1744096249160,-500.0,0.00022594,2]
[357510193,1744096249169,-639.32,0.00022594,2]
[357510194,1744096249179,-519.12,0.00022594,2]
[357510195,1744096249188,-500.0,0.00022594,2]
[357510196,1744096249197,-500.0,0.00022594,2]
[357510197,1744096249207,-574.23,0.00022594,2]
[357510198,1744096249216,-631.26,0.00022594,2]
[357510199,1744096249225,-524.67,0.00022594,2]
[357510200,1744096249235,-976.47,0.00022594,2]
[357510201,1744096249244,-500.0,0.00022766,2]
[357510202,1744096249254,-1733.29,0.00022766,2]
[357510203,1744096249264,-1572.23,0.00022766,2]
[357510204,1744096249274,-760.4,0.00022766,2]
[357510205,1744096249284,-691.08,0.00022766,2]
[357510206,1744096249293,-911.97,0.00022766,2]
[357510207,1744096249303,-500.0,0.00022766,2]
[357510208,1744096249312,-500.0,0.00022766,2]
[357510209,1744096249321,-518.54,0.00022766,2]
[357510210,1744096249331,-948.06,0.00022766,2]
[357510211,1744096249341,-500.0,0.00022766,2]
[357510212,1744096249350,-626.32,0.00022767,2]
[357510213,1744096249360,-553.6154328,0.00022767,2]
[357510214,1744096249369,-500.0,0.00022767,2]
[357510215,1744096249379,-500.0,0.00022767,2]
[357510216,1744096249388,-505.58,0.00022767,2]
[357510217,1744096249398,-542.36,0.00022767,2]
[357510218,1744096249408,-871.23,0.00022767,2]
[357510219,1744096249418,-574.78,0.00022767,2]
[357510220,1744096249428,-5430.84,0.00022767,2]
[357510221,1744096249438,-1158.68,0.00022767,2]
[357510222,1744096249449,-566.0,0.00022767,2]
[357510223,1744096249458,-500.0,0.00022767,2]
[357510224,1744096249469,-600.12,0.00022767,2]
[357510225,1744096249479,-500.0,0.00022767,2]
[357510226,1744096249488,-500.0,0.00022767,2]
[357510227,1744096249497,-1018.84,0.00022768,2]
[357510228,1744096249507,-651.19,0.00022768,2]
[357510229,1744096249518,-864.85,0.00022768,2]
[357510230,1744096249529,-2875.12,0.00022768,2]
[357510231,1744096249538,-1322.83,0.00022768,2]
[357510232,1744096249548,-500.0,0.00022768,2]
[357510233,1744096249557,-2696.02,0.00022768,2]
[357510234,1744096249568,-652.71,0.00022768,2]
[357510235,1744096249578,-1126.37,0.00022867,2]
[357510236,1744096249587,-191.19,0.00022867,2]
[357510237,1744096249598,-517.43,0.00022867,2]
[357510238,1744096249607,-500.0,0.00022868,2]
[357510239,1744096249617,-639.32,0.00022868,2]
[357510240,1744096249627,-519.12,0.00022868,2]
[357510241,1744096249637,-500.0,0.00022868,2]
[357510242,1744096249648,-500.0,0.00022868,2]
[357510243,1744096249657,-574.23,0.00022868,2]
[357510244,1744096249667,-631.26,0.00022868,2]
[357510245,1744096249677,-524.67,0.00022868,2]
[357510246,1744096249686,-976.47,0.00022868,2]
[357510247,1744096249695,-150.16802362,0.00022891,2]
[357510248,1744096249705,-308.75149378,0.00023,2]
[357510249,1744096249715,-500.0,0.0002304,2]
[357510250,1744096249725,-1733.29,0.0002304,2]
[357510251,1744096249735,-1572.23,0.0002304,2]
[357510252,1744096249744,-760.4,0.0002304,2]
[357510253,1744096249754,-691.08,0.0002304,2]
[357510254,1744096249764,-911.97,0.0002304,2]
[357510255,1744096249774,-500.0,0.0002304,2]
[357510256,1744096249783,-500.0,0.0002304,2]
[357510257,1744096249793,-518.54,0.0002304,2]
[357510258,1744096249803,-948.06,0.0002304,2]
[357510259,1744096249813,-500.0,0.0002304,2]
[357510260,1744096249823,-500.0,0.00023041,2]
[357510261,1744096249832,-500.0,0.00023041,2]
[357510262,1744096249842,-505.58,0.00023041,2]
[357510263,1744096249851,-542.36,0.00023041,2]
[357510264,1744096249861,-871.23,0.00023041,2]
[357510265,1744096249870,-574.78,0.00023041,2]
[357510266,1744096249881,-5430.84,0.00023041,2]
[357510267,1744096249891,-1158.68,0.00023041,2]
[357510268,1744096249901,-566.0,0.00023041,2]
[357510269,1744096249910,-500.0,0.00023041,2]
[357510270,1744096249919,-600.12,0.00023041,2]
[357510271,1744096249930,-500.0,0.00023041,2]
[357510272,1744096249939,-500.0,0.00023041,2]
[357510273,1744096249949,-1018.84,0.00023042,2]
[357510274,1744096249959,-651.19,0.00023042,2]
[357510275,1744096249968,-864.85,0.00023042,2]
[357510276,1744096249978,-2875.12,0.00023042,2]
[357510277,1744096249987,-1322.83,0.00023042,2]
[357510278,1744096249997,-500.0,0.00023042,2]
[357510279,1744096250007,-2696.02,0.00023042,2]
[357510280,1744096250016,-652.71,0.00023042,2]
[357510281,1744096250026,-1126.37,0.00023141,2]
[357510282,1744096250035,-517.43,0.00023141,2]
[357510283,1744096250045,-500.0,0.00023142,2]
[357510284,1744096250054,-639.32,0.00023142,2]
[357510285,1744096250064,-519.12,0.00023142,2]
[357510286,1744096250074,-500.0,0.00023142,2]
[357510287,1744096250084,-500.0,0.00023142,2]
[357510288,1744096250098,-574.23,0.00023142,2]
[357510289,1744096250108,-631.26,0.00023142,2]
[357510290,1744096250117,-524.67,0.00023142,2]
[357510291,1744096250127,-976.47,0.00023142,2]
[357510292,1744096250136,-3000.0,0.000232,2]
[357510293,1744096250146,-3000.0,0.0002321,2]
[357510294,1744096250155,-3000.0,0.0002322,2]
[357510295,1744096250165,-3000.0,0.0002323,2]
[357510296,1744096250174,-3000.0,0.0002324,2]
[357510297,1744096250184,-3000.0,0.0002325,2]
[357510298,1744096250193,-3000.0,0.0002326,2]
[357510299,1744096250202,-3000.0,0.0002327,2]
[357510300,1744096250212,-3000.0,0.0002328,2]
[357510301,1744096250221,-200.0,0.00023287,2]
[357510302,1744096250230,-3000.0,0.0002329,2]
[357510303,1744096250240,-3000.0,0.000233,2]
[357510304,1744096250250,-3000.0,0.0002331,2]
[357510305,1744096250259,-500.0,0.00023314,2]
[357510306,1744096250270,-1733.29,0.00023314,2]
[357510307,1744096250279,-1572.23,0.00023314,2]
[357510308,1744096250289,-760.4,0.00023314,2]
[357510309,1744096250300,-691.08,0.00023314,2]
[357510310,1744096250309,-911.97,0.00023314,2]
[357510311,1744096250319,-500.0,0.00023314,2]
[357510312,1744096250328,-500.0,0.00023314,2]
[357510313,1744096250338,-518.54,0.00023314,2]
[357510314,1744096250460,-948.06,0.00023314,2]
[357510315,1744096250471,-500.0,0.00023314,2]
[357510316,1744096250480,-500.0,0.00023315,2]
[357510317,1744096250490,-500.0,0.00023315,2]
[357510318,1744096250499,-505.58,0.00023315,2]
[357510319,1744096250509,-542.36,0.00023315,2]
[357510320,1744096250522,-871.23,0.00023315,2]
[357510321,1744096250532,-574.78,0.00023315,2]
[357510322,1744096250541,-5430.84,0.00023315,2]
[357510323,1744096250551,-1158.68,0.00023315,2]
[357510324,1744096250561,-566.0,0.00023315,2]
[357510325,1744096250571,-480.33752651,0.00023315,2]
[357510326,1744096250580,-600.12,0.00023315,2]
[357510327,1744096250590,-500.0,0.00023315,2]
[357510328,1744096250600,-500.0,0.00023315,2]
[357510329,1744096250610,-1018.84,0.00023316,2]
[357510330,1744096250619,-651.19,0.00023316,2]
[357510331,1744096250629,-864.85,0.00023316,2]
[357510332,1744096250638,-2875.12,0.00023316,2]
[357510333,1744096250649,-1322.83,0.00023316,2]
[357510334,1744096250659,-500.0,0.00023316,2]
[357510335,1744096250668,-2696.02,0.00023316,2]
[357510336,1744096250678,-652.71,0.00023316,2]
[357510337,1744096250687,-3000.0,0.0002332,2]
[357510338,1744096250696,-3000.0,0.0002333,2]
[357510339,1744096250706,-3000.0,0.0002334,2]
[357510340,1744096250717,-186.38443443,0.0002334,2]
[357510341,1744096250726,-3000.0,0.0002335,2]
[357510342,1744096250735,-3000.0,0.0002336,2]
[357510343,1744096250745,-3000.0,0.0002337,2]
[357510344,1744096250754,-3000.0,0.0002338,2]
[357510345,1744096250763,-3000.0,0.0002339,2]
[357510346,1744096250773,-3000.0,0.000234,2]
[357510347,1744096250782,-3000.0,0.0002341,2]
[357510348,1744096250792,-1126.37,0.00023415,2]
[357510349,1744096250801,-517.43,0.00023415,2]
[357510350,1744096250810,-500.0,0.00023416,2]
[357510351,1744096250819,-639.32,0.00023416,2]
[357510352,1744096250828,-519.12,0.00023416,2]
[357510353,1744096250837,-500.0,0.00023416,2]
[357510354,1744096250847,-500.0,0.00023416,2]
[357510355,1744096250856,-574.23,0.00023416,2]
[357510356,1744096250865,-631.26,0.00023416,2]
[357510357,1744096250876,-524.67,0.00023416,2]
[357510358,1744096250885,-976.47,0.00023416,2]
[357510359,1744096250896,-3000.0,0.0002342,2]
[357510360,1744096250906,-3000.0,0.0002343,2]
[357510361,1744096250915,-3000.0,0.0002344,2]
[357510362,1744096250924,-3000.0,0.0002345,2]
[357510363,1744096250934,-3000.0,0.0002346,2]
[357510364,1744096250943,-3000.0,0.0002347,2]
[357510365,1744096250953,-3000.0,0.0002348,2]
[357510366,1744096250962,-5776.787735,0.0002349,2]
[357510367,1744096250971,-500.0,0.00023588,2]
[357510368,1744096250981,-1733.29,0.00023588,2]
[357510369,1744096250992,-1572.23,0.00023588,2]
[357510370,1744096251001,-760.4,0.00023588,2]
[357510371,1744096251010,-691.08,0.00023588,2]
[357510372,1744096251019,-911.97,0.00023588,2]
[357510373,1744096251029,-500.0,0.00023588,2]